bitfinex/quotes_BTCUSD_20230106
["timestamp","ask_amount","ask_price","bid_price","bid_amount"]
[1672968196631,0.509,16863.0,16862.0,1.28035664]
[1672968196928,0.009,16863.0,16862.0,1.28035664]
[1672968197189,0.54283105,16863.0,16862.0,1.28035664]
[1672968197744,0.009,16863.0,16862.0,1.28035664]
[1672968198007,0.54283105,16863.0,16862.0,1.28035664]
[1672968200129,0.54275212,16863.0,16862.0,1.28035664]
[1672968201153,0.54284806,16863.0,16862.0,1.28035664]
[1672968201418,0.54275212,16863.0,16862.0,1.28035664]
[1672968201679,0.00892107,16863.0,16862.0,1.28035664]
[1672968208909,0.00892107,16863.0,16862.0,1.34077664]
[1672968209401,0.45376706,16863.0,16862.0,1.28035664]
[1672968209662,0.00892107,16863.0,16862.0,1.28035664]
[1672968212271,0.45376191,16863.0,16862.0,1.28035664]
[1672968212528,0.00892107,16863.0,16862.0,1.28035664]
[1672968213832,0.00892107,16863.0,16862.0,1.34078064]
[1672968214084,0.45378336,16863.0,16862.0,1.28035664]
[1672968214573,0.45381048,16863.0,16862.0,1.28035664]
[1672968216115,0.45381856,16863.0,16862.0,0.6562848]
[1672968216700,0.00892107,16863.0,16862.0,0.6562848]
[1672968218065,0.00892107,16863.0,16862.0,0.7167088]
[1672968218329,0.00892107,16863.0,16862.0,0.6562848]
[1672968219647,0.45383523,16863.0,16862.0,0.7167088]
[1672968219934,0.45383523,16863.0,16862.0,0.6562848]
[1672968220208,0.00892107,16863.0,16862.0,0.6562848]
[1672968220465,0.45383561,16863.0,16862.0,0.65621117]
[1672968222241,0.45383561,16863.0,16862.0,0.71663517]
[1672968224666,0.80977258,16863.0,16862.0,1.30968417]
[1672968224917,0.63181774,16863.0,16862.0,1.80968417]
[1672968225177,0.63181774,16863.0,16862.0,2.40273317]
[1672968225931,0.45379381,16863.0,16862.0,2.33582024]
[1672968226191,0.18683411,16863.0,16862.0,3.53383545]
[1672968226766,0.18683411,16863.0,16862.0,3.83383545]
[1672968226767,0.00892107,16863.0,16862.0,3.83383545]
[1672968227025,0.18683411,16863.0,16862.0,3.53383545]
[1672968227312,0.18683411,16863.0,16862.0,2.94453721]
[1672968228110,0.00892107,16863.0,16862.0,2.94610326]
[1672968228890,0.00892107,16863.0,16862.0,3.53570273]
[1672968229156,0.00892107,16863.0,16862.0,3.53581259]
[1672968229457,0.00892107,16863.0,16862.0,2.94610326]
[1672968244383,0.00892107,16863.0,16862.0,3.24610326]
[1672968244921,0.00892107,16863.0,16862.0,2.94610326]
[1672968247021,0.00892107,16863.0,16862.0,2.35305426]
[1672968247787,0.00892107,16863.0,16862.0,1.76000526]
[1672968248329,0.18683411,16863.0,16862.0,1.76000526]
[1672968248578,0.00892107,16863.0,16862.0,1.76000526]
[1672968249359,0.18683411,16863.0,16862.0,1.76000526]
[1672968251134,0.00892107,16863.0,16862.0,1.76000526]
[1672968251381,0.18683411,16863.0,16862.0,1.76000526]
[1672968251636,0.00892107,16863.0,16862.0,1.76000526]
[1672968252174,0.18683411,16863.0,16862.0,1.76000526]
[1672968252966,0.00892107,16863.0,16862.0,1.76000526]
[1672968253208,0.18683411,16863.0,16862.0,2.35968383]
[1672968255634,0.18683411,16863.0,16862.0,2.35811778]
[1672968257833,0.18683411,16863.0,16862.0,2.29769378]
[1672968258113,0.18683411,16863.0,16862.0,2.35811778]
[1672968259142,0.18683411,16863.0,16862.0,2.35962828]
[1672968259397,0.45379381,16863.0,16862.0,2.35962828]
[1672968260445,0.18683411,16863.0,16862.0,2.29920428]
[1672968260946,0.18683411,16863.0,16862.0,2.35962828]
[1672968261204,0.18683411,16863.0,16862.0,2.95267728]
[1672968264524,0.18683411,16863.0,16862.0,2.95116678]
[1672968264758,0.45379381,16863.0,16862.0,2.95116678]
[1672968266604,0.45379381,16863.0,16862.0,2.35811778]
[1672968267568,0.18683411,16863.0,16862.0,2.95116678]
[1672968268312,0.18683411,16863.0,16862.0,2.95260552]
[1672968269353,0.45379381,16863.0,16862.0,2.95260552]
[1672968270927,0.18683411,16863.0,16862.0,2.95260552]
[1672968276329,0.18683411,16863.0,16862.0,2.95116678]
[1672968276330,0.45379381,16863.0,16862.0,2.95116678]
[1672968277415,0.45379381,16863.0,16862.0,2.95123871]
[1672968290346,0.45379381,16863.0,16862.0,2.95116678]
[1672968291582,0.45379381,16863.0,16862.0,2.95253718]
[1672968291845,0.45379381,16863.0,16862.0,2.95116678]
[1672968292636,0.45379381,16863.0,16862.0,2.95253718]
[1672968292872,0.45379381,16863.0,16862.0,2.95116678]
[1672968293090,0.45379381,16863.0,16862.0,2.89074278]
[1672968293688,0.45379381,16863.0,16862.0,2.95116678]
[1672968293907,0.45379381,16863.0,16862.0,2.95260552]
[1672968294423,0.45379381,16863.0,16862.0,2.89218152]
[1672968294990,0.45379381,16863.0,16862.0,2.95260552]
[1672968298177,0.45379381,16863.0,16862.0,2.95116678]
[1672968298406,0.45379381,16863.0,16862.0,2.95123871]
[1672968299204,0.45379381,16863.0,16862.0,2.95116678]
[1672968300008,0.45379381,16863.0,16862.0,2.89074278]
[1672968300225,0.45379381,16863.0,16862.0,2.29769378]
[1672968300428,0.45379381,16863.0,16862.0,2.35955652]
[1672968301386,0.45379381,16863.0,16862.0,1.85955652]
[1672968301749,0.45388975,16863.0,16862.0,1.85811778]
[1672968301978,0.45388975,16863.0,16862.0,2.45116678]
[1672968302340,0.27588077,16863.0,16862.0,2.45116678]
[1672968303644,0.27588077,16863.0,16862.0,2.45260552]
[1672968304156,0.27588077,16863.0,16862.0,2.45116678]
[1672968305606,0.27588077,16863.0,16862.0,2.45260552]
[1672968305844,0.63181774,16863.0,16862.0,2.45260552]
[1672968308070,0.63181774,16863.0,16862.0,2.39218152]
[1672968308326,0.63181774,16863.0,16862.0,2.39074278]
[1672968308572,0.63181774,16863.0,16862.0,2.45123871]
[1672968308842,0.63181774,16863.0,16862.0,2.45116678]
[1672968309885,0.80984,16863.0,16862.0,2.45123871]
[1672968310179,0.63181774,16863.0,16862.0,2.45116678]
[1672968310639,0.63191368,16863.0,16862.0,1.85811778]
[1672968310892,0.63181774,16863.0,16862.0,1.79769378]
[1672968311142,0.63181774,16863.0,16862.0,1.85811778]
[1672968313532,0.63181774,16863.0,16862.0,1.85955652]
[1672968314389,0.63191368,16863.0,16862.0,1.79769378]
[1672968314899,0.63181774,16863.0,16862.0,1.85811778]
[1672968315187,0.63181774,16863.0,16862.0,1.85955652]
[1672968315696,0.63181774,16863.0,16862.0,1.85811778]
[1672968316176,0.63181774,16863.0,16862.0,1.85955652]
[1672968316536,0.63191368,16863.0,16862.0,1.85811778]
[1672968316792,0.63181774,16863.0,16862.0,1.85811778]
[1672968317318,0.63181774,16863.0,16862.0,1.79913252]
[1672968317579,0.63181774,16863.0,16862.0,1.79769378]
[1672968318285,1.07673228,16863.0,16862.0,1.20464478]
[1672968318548,0.80977258,16863.0,16862.0,0.66539021]
[1672968318803,0.80986852,16863.0,16862.0,1.28614546]
[1672968319063,0.80977258,16863.0,16862.0,1.28614546]
[1672968319337,0.80977258,16863.0,16862.0,1.2875842]
[1672968319856,0.80986852,16863.0,16862.0,1.28614546]
[1672968320658,0.80986852,16863.0,16862.0,0.66530858]
[1672968321179,0.80977258,16863.0,16862.0,0.66530858]
[1672968321442,0.80977258,16863.0,16862.0,1.28938042]
[1672968321717,0.80977258,16863.0,16862.0,1.28945235]
[1672968321991,0.80977258,16863.0,16862.0,1.28938042]
[1672968323094,0.45370651,16863.0,16861.0,0.63274112]
[1672968323371,0.62269984,16862.0,16861.0,1.17865755]
[1672968323633,0.62269984,16862.0,16861.0,1.23908555]
[1672968324717,0.63779578,16862.0,16861.0,1.23908555]
[1672968326507,0.63769984,16862.0,16861.0,1.23908555]
[1672968326771,0.63779578,16862.0,16861.0,1.23908555]
[1672968327309,0.63769984,16862.0,16861.0,1.23908555]
[1672968327814,0.63779578,16862.0,16861.0,1.17865755]
[1672968328076,0.81555819,16862.0,16861.0,1.17865755]
[1672968328384,0.63769984,16862.0,16861.0,1.23908855]
[1672968328910,0.81555812,16862.0,16861.0,1.23925387]
[1672968329172,0.45972964,16862.0,16861.0,1.23908855]
[1672968329689,0.45972964,16862.0,16861.0,1.83233787]
[1672968330468,0.19285828,16862.0,16861.0,2.42542187]
[1672968331540,0.45972964,16862.0,16861.0,2.36482555]
[1672968331787,0.45972964,16862.0,16861.0,2.42525655]
[1672968332366,0.19285828,16862.0,16861.0,2.42525655]
[1672968333398,0.45972964,16862.0,16861.0,2.42525655]
[1672968334942,0.45972964,16862.0,16861.0,2.42542187]
[1672968335206,0.19285828,16862.0,16861.0,2.42542187]
[1672968337335,0.015,16862.0,16861.0,2.42542187]
[1672968339213,0.015,16862.0,16861.0,2.42525655]
[1672968339464,0.19285828,16862.0,16861.0,2.42542187]
[1672968339730,0.19285828,16862.0,16861.0,2.42525655]
[1672968340816,0.19285828,16862.0,16861.0,1.83206157]
[1672968341334,0.45972964,16862.0,16861.0,1.77163057]
[1672968341899,0.45972964,16862.0,16861.0,1.83206157]
[1672968342989,0.45972964,16862.0,16861.0,1.83222689]
[1672968345998,0.45972964,16862.0,16861.0,1.77179589]
[1672968346263,0.45972964,16862.0,16861.0,1.83222689]
[1672968346776,0.45972964,16862.0,16861.0,2.42514557]
[1672968347037,0.45972964,16862.0,16861.0,2.42661748]
[1672968348834,0.45972964,16862.0,16861.0,2.42514557]
[1672968349092,0.45982558,16862.0,16861.0,2.42514557]
[1672968350659,0.81555812,16862.0,16861.0,2.42677453]
[1672968350922,0.45972964,16862.0,16861.0,2.42677453]
[1672968353660,0.81555812,16862.0,16861.0,2.42677453]
[1672968353919,0.63769984,16862.0,16861.0,2.42677453]
[1672968355022,0.63769984,16862.0,16861.0,2.42514557]
[1672968355285,0.63779578,16862.0,16861.0,2.42514557]
[1672968355796,0.63769984,16862.0,16861.0,2.42514557]
[1672968356332,0.63779578,16862.0,16861.0,2.42514557]
[1672968356599,0.63769984,16862.0,16861.0,2.42522702]
[1672968357408,0.63779578,16862.0,16861.0,2.42514557]
[1672968357921,0.63769984,16862.0,16861.0,2.42514557]
[1672968359041,0.63779578,16862.0,16861.0,2.42514557]
[1672968359304,0.63769984,16862.0,16861.0,2.42514557]
[1672968360155,0.63769984,16862.0,16861.0,2.42677453]
[1672968360415,0.63769984,16862.0,16861.0,2.42514557]
[1672968360922,0.63769984,16862.0,16861.0,2.42677453]
[1672968361424,0.45985303,16862.0,16861.0,2.42677453]
[1672968361681,0.81568151,16862.0,16861.0,2.36634353]
[1672968362431,0.81568151,16862.0,16861.0,2.42677453]
[1672968362711,0.45985303,16862.0,16861.0,2.42677453]
[1672968362948,0.81568151,16862.0,16861.0,2.42514557]
[1672968363196,0.45985303,16862.0,16861.0,2.42677453]
[1672968366067,0.45985303,16862.0,16861.0,2.42522702]
[1672968366324,0.63779578,16862.0,16861.0,1.83206157]
[1672968366631,0.63779578,16862.0,16861.0,1.77163057]
[1672968366875,1.08258122,16862.0,16861.0,1.14755873]
[1672968367136,1.08258122,16862.0,16861.0,1.17854657]
[1672968367137,0.81570986,16862.0,16861.0,1.17854657]
[1672968367663,0.81570986,16862.0,16861.0,1.23897757]
[1672968369320,0.81561392,16862.0,16861.0,1.23897757]
[1672968369585,0.81561392,16862.0,16861.0,1.18017553]
[1672968369845,0.81570986,16862.0,16861.0,0.61490573]
[1672968370097,0.81570986,16862.0,16861.0,1.23897757]
[1672968370353,0.81561392,16862.0,16861.0,0.61490573]
[1672968370670,0.81561392,16862.0,16861.0,0.61480991]
[1672968372012,0.81561392,16862.0,16861.0,1.23888175]
[1672968373056,0.81561392,16862.0,16861.0,1.24051071]
[1672968373372,0.81561392,16862.0,16861.0,1.23888175]
[1672968373879,0.81570986,16862.0,16861.0,1.23888175]
[1672968374142,0.81570986,16862.0,16861.0,0.61480991]
[1672968375474,0.81570986,16862.0,16861.0,1.23888175]
[1672968377343,0.81570986,16862.0,16861.0,0.61480991]
[1672968379536,0.45988138,16862.0,16861.0,0.61480991]
[1672968381318,0.45988138,16862.0,16861.0,0.55437891]
[1672968384656,0.45988138,16862.0,16861.0,0.00846248]
[1672968385214,0.45979097,16862.0,16861.0,0.00846248]
[1672968389542,0.45969503,16862.0,16861.0,0.59805757]
[1672968389802,0.45969503,16862.0,16861.0,0.59781907]
[1672968393227,0.45979097,16862.0,16861.0,0.59781907]
[1672968393505,0.45969503,16862.0,16861.0,0.59781907]
[1672968394312,0.45979097,16862.0,16861.0,0.59781907]
[1672968396983,0.45969503,16862.0,16861.0,0.59781907]
[1672968399437,0.45979097,16862.0,16861.0,0.59781907]
[1672968399985,0.60805453,16862.0,16861.0,0.59781907]
[1672968403144,0.60795859,16862.0,16861.0,0.59781907]
[1672968403397,0.60795859,16862.0,16861.0,0.59937851]
[1672968403659,0.60795859,16862.0,16861.0,0.59781907]
[1672968405223,0.60795859,16862.0,16861.0,0.59772596]
[1672968406289,0.01490959,16862.0,16861.0,0.5992854]
[1672968406789,0.01500553,16862.0,16861.0,0.59772596]
[1672968407011,0.01490959,16862.0,16861.0,0.59772596]
[1672968407531,0.01490959,16862.0,16861.0,0.5992854]
[1672968408067,0.45995274,16862.0,16861.0,0.59772596]
[1672968408329,0.01500553,16862.0,16861.0,0.59772596]
[1672968410803,0.7099403,16862.0,16861.0,0.59772596]
[1672968411060,2.44835035,16862.0,16861.0,0.00836937]
[1672968411311,1.3214703,16862.0,16861.0,0.00836937]
[1672968412071,1.9145193,16862.0,16861.0,0.00836937]
[1672968412319,2.44835035,16862.0,16861.0,0.00836937]
[1672968412571,1.9145193,16862.0,16861.0,0.00836937]
[1672968413092,1.3214703,16862.0,16861.0,0.00836937]
[1672968413598,1.5214703,16862.0,16861.0,0.00836937]
[1672968413852,1.3214703,16862.0,16861.0,0.00836937]
[1672968414114,1.9145193,16862.0,16861.0,0.00836937]
[1672968414362,2.44835035,16862.0,16861.0,0.00836937]
[1672968414630,1.9145193,16862.0,16861.0,0.00836937]
[1672968414876,2.44835035,16862.0,16861.0,0.00836937]
[1672968415881,2.43344076,16862.0,16861.0,0.00836937]
[1672968416132,2.44944076,16862.0,16861.0,0.00836937]
[1672968419182,3.04248976,16862.0,16861.0,0.00836937]
[1672968425821,1.75441005,16862.0,16861.0,0.00836937]
[1672968426104,0.54983105,16862.0,16861.0,0.63244121]
[1672968426330,0.016,16862.0,16861.0,0.00836937]
[1672968426587,0.62753,16862.0,16861.0,0.00836937]
[1672968427115,0.016,16862.0,16861.0,0.00836937]
[1672968429409,0.01609594,16862.0,16861.0,0.00836937]
[1672968429670,0.01609594,16862.0,16861.0,0.00827894]
[1672968430708,0.01609594,16862.0,16861.0,0.00991391]
[1672968430954,0.62762594,16862.0,16861.0,0.00827894]
[1672968431458,0.01609594,16862.0,16861.0,0.00827894]
[1672968431707,0.016,16862.0,16861.0,0.00827894]
[1672968432232,0.016,16862.0,16861.0,0.63235078]
[1672968432744,0.01609594,16862.0,16861.0,0.00827894]
[1672968433519,0.15789594,16862.0,16861.0,0.00827894]
[1672968433801,1.30325699,16862.0,16861.0,0.00827894]
[1672968434582,1.30316105,16862.0,16861.0,0.00827894]
[1672968435124,0.69163105,16862.0,16861.0,0.00827894]
[1672968435371,0.016,16862.0,16861.0,0.00827894]
[1672968435635,0.316,16862.0,16861.0,0.00827894]
[1672968436755,0.016,16862.0,16861.0,0.00827894]
[1672968436975,0.516,16862.0,16861.0,0.00827894]
[1672968437185,1.12753,16862.0,16861.0,0.00827894]
[1672968437584,0.516,16862.0,16861.0,0.00827894]
[1672968437848,1.12753,16862.0,16861.0,0.00827894]
[1672968438091,1.12762594,16862.0,16861.0,0.00827894]
[1672968438324,0.51609594,16862.0,16861.0,0.00827894]
[1672968438541,1.04992699,16862.0,16861.0,0.00827894]
[1672968438763,1.16145699,16862.0,16861.0,0.00827894]
[1672968438985,0.54992699,16862.0,16861.0,0.00827894]
[1672968439440,1.04992699,16862.0,16861.0,0.00827894]
[1672968439669,1.66145699,16862.0,16861.0,0.00827894]
[1672968440101,1.16145699,16862.0,16861.0,0.00827894]
[1672968440344,0.54992699,16862.0,16861.0,0.00827894]
[1672968440558,0.01609594,16862.0,16861.0,0.00827894]
[1672968440789,0.016,16862.0,16861.0,0.00827894]
[1672968441713,0.01609594,16862.0,16861.0,0.00827894]
[1672968442158,0.016,16862.0,16861.0,0.00827894]
[1672968443065,0.01609594,16862.0,16861.0,0.00827894]
[1672968443325,0.016,16862.0,16861.0,0.00827894]
[1672968443578,0.62753,16862.0,16861.0,0.00827894]
[1672968443847,0.016,16862.0,16861.0,0.00827894]
[1672968444101,0.54992699,16862.0,16861.0,0.00827894]
[1672968444363,0.01609594,16862.0,16861.0,0.00827894]
[1672968444621,0.54992699,16862.0,16861.0,0.00827894]
[1672968444885,1.16145699,16862.0,16861.0,0.00827894]
[1672968445145,1.16136105,16862.0,16861.0,0.00836067]
[1672968445415,0.62753,16862.0,16861.0,0.00827894]
[1672968445663,0.62762594,16862.0,16861.0,0.00827894]
[1672968445928,1.16145699,16862.0,16861.0,0.00827894]
[1672968446185,0.62762594,16862.0,16861.0,0.00827894]
[1672968446435,1.16145699,16862.0,16861.0,0.00827894]
[1672968446688,1.36145699,16862.0,16861.0,0.00827894]
[1672968448016,0.82762594,16862.0,16861.0,0.00827894]
[1672968448243,0.01609594,16862.0,16861.0,0.00827894]
[1672968449523,0.016,16862.0,16861.0,0.00827894]
[1672968451062,0.016,16862.0,16861.0,0.00836067]
[1672968451314,0.016,16862.0,16861.0,0.00827894]
[1672968452130,0.016,16862.0,16861.0,0.63235078]
[1672968452371,0.016,16862.0,16861.0,0.00827894]
[1672968452630,0.016,16862.0,16861.0,0.00821294]
[1672968452873,0.016,16862.0,16861.0,0.63228478]
[1672968453171,0.01609594,16862.0,16861.0,0.63228478]
[1672968453643,0.01609594,16862.0,16861.0,0.00821294]
[1672968453919,0.62762594,16862.0,16861.0,0.00821294]
[1672968454424,0.01609594,16862.0,16861.0,0.00821294]
[1672968455889,0.01609594,16862.0,16861.0,0.63228478]
[1672968456639,0.01609594,16862.0,16861.0,0.00821294]
[1672968457618,0.01609594,16862.0,16861.0,0.63228478]
[1672968458382,0.01609594,16862.0,16861.0,0.00821294]
[1672968459402,0.016,16862.0,16861.0,0.63237039]
[1672968459668,0.46106261,16862.0,16861.0,1.14593399]
[1672968460178,0.46106261,16862.0,16861.0,1.20636499]
[1672968460712,0.46106261,16862.0,16861.0,1.14584838]
[1672968463001,0.46115855,16862.0,16861.0,1.14584838]
[1672968464781,0.46106261,16862.0,16861.0,1.14584838]
[1672968465032,0.46115855,16862.0,16861.0,1.14584838]
[1672968465823,0.46106261,16862.0,16861.0,1.14584838]
[1672968467567,0.46115855,16862.0,16861.0,1.14584838]
[1672968467824,0.46106261,16862.0,16861.0,1.14584838]
[1672968468566,0.46115855,16862.0,16861.0,1.14584838]
[1672968469370,0.46106261,16862.0,16861.0,1.20627938]
[1672968469917,0.81703791,16862.0,16861.0,1.20627938]
[1672968470412,0.81713385,16862.0,16861.0,1.14584838]
[1672968470678,0.46115855,16862.0,16861.0,1.14584838]
[1672968472556,0.44506261,16862.0,16861.0,1.14584838]
[1672968472811,0.46006261,16862.0,16861.0,1.14584838]
[1672968473332,0.46006261,16862.0,16861.0,1.20627938]
[1672968473661,0.81601218,16862.0,16861.0,1.14584838]
[1672968474212,0.81601263,16862.0,16861.0,1.14584838]
[1672968475912,0.81601263,16862.0,16861.0,1.14578013]
[1672968476165,0.46006261,16862.0,16861.0,1.14578013]
[1672968476424,0.81601267,16862.0,16861.0,1.14578013]
[1672968476692,0.80110861,16862.0,16861.0,1.20621113]
[1672968476946,0.81701267,16862.0,16861.0,1.20621113]
[1672968477208,0.80101267,16862.0,16861.0,1.20621113]
[1672968477680,0.81610861,16862.0,16861.0,1.20621113]
[1672968477929,0.81610861,16862.0,16861.0,1.14578013]
[1672968478706,0.81601267,16862.0,16861.0,1.14578013]
[1672968478978,0.81601267,16862.0,16861.0,1.20621113]
[1672968479739,0.81601267,16862.0,16861.0,1.14578013]
[1672968480005,0.81610861,16862.0,16861.0,1.14578013]
[1672968480255,0.81601267,16862.0,16861.0,1.20621113]
[1672968481265,0.81610861,16862.0,16861.0,0.52170829]
[1672968481519,0.46015855,16862.0,16861.0,0.52170829]
[1672968481771,0.01509594,16862.0,16861.0,0.52170829]
[1672968482034,0.46004571,16862.0,16861.0,0.52170829]
[1672968482280,0.44494977,16862.0,16861.0,0.52170829]
[1672968482537,0.46094977,16862.0,16861.0,1.14578013]
[1672968482804,0.81690263,16862.0,16861.0,1.14578013]
[1672968483063,0.80090263,16862.0,16861.0,1.20621113]
[1672968483378,0.81590263,16862.0,16861.0,1.20621113]
[1672968483658,0.80090263,16862.0,16861.0,1.20621113]
[1672968484101,0.81590263,16862.0,16861.0,1.20621113]
[1672968484109,0.80090263,16862.0,16861.0,1.20621113]
[1672968484367,0.80090263,16862.0,16861.0,1.14578013]
[1672968484620,0.80090263,16862.0,16861.0,1.73886413]
[1672968485132,0.81490263,16862.0,16861.0,1.73886413]
[1672968485414,0.80090263,16862.0,16861.0,1.73886413]
[1672968485679,0.81590263,16862.0,16861.0,1.73886413]
[1672968485941,0.80090263,16862.0,16861.0,1.79929513]
[1672968486202,0.80090263,16862.0,16861.0,1.14578013]
[1672968486487,0.81490263,16862.0,16861.0,1.14578013]
[1672968486751,0.80090263,16862.0,16861.0,1.14578013]
[1672968487012,0.44494977,16862.0,16861.0,1.14578013]
[1672968487265,0.44504571,16862.0,16861.0,1.14578013]
[1672968488099,0.44494977,16862.0,16861.0,1.14578013]
[1672968488341,0.44504571,16862.0,16861.0,1.14578013]
[1672968488852,0.44494977,16862.0,16861.0,1.14578013]
[1672968489164,0.45994977,16862.0,16861.0,1.20621113]
[1672968489967,0.44494977,16862.0,16861.0,1.20621113]
[1672968490226,0.45994977,16862.0,16861.0,1.20621113]
[1672968490497,0.44494977,16862.0,16861.0,1.20621113]
[1672968490781,0.81694557,16862.0,16861.0,1.79929513]
[1672968491046,0.80094557,16862.0,16861.0,1.79938839]
[1672968491299,0.80094557,16862.0,16861.0,1.79929513]
[1672968491849,0.81594557,16862.0,16861.0,1.79929513]
[1672968492357,0.81594557,16862.0,16861.0,1.79938839]
[1672968492619,0.81594557,16862.0,16861.0,1.79929513]
[1672968492620,0.45994977,16862.0,16861.0,1.79929513]
[1672968492896,0.80097916,16862.0,16861.0,1.79929513]
[1672968493463,0.81597916,16862.0,16861.0,1.79929513]
[1672968493738,0.80097916,16862.0,16861.0,1.79929513]
[1672968493994,0.81497916,16862.0,16861.0,1.79929513]
[1672968494254,0.80097916,16862.0,16861.0,1.79950778]
[1672968494582,0.81697916,16862.0,16861.0,1.79950778]
[1672968494860,0.81697916,16862.0,16861.0,1.17543594]
[1672968495112,0.8170751,16862.0,16861.0,1.79929513]
[1672968495352,0.81697916,16862.0,16861.0,1.79950778]
[1672968495600,0.80097916,16862.0,16861.0,1.79929513]
[1672968495909,0.45994977,16862.0,16861.0,1.79929513]
[1672968496183,0.44494977,16862.0,16861.0,1.79929513]
[1672968496413,0.46094977,16862.0,16861.0,1.79959636]
[1672968496678,0.44494977,16862.0,16861.0,1.79959636]
[1672968496950,0.45994977,16862.0,16861.0,1.79959636]
[1672968497196,0.44494977,16862.0,16861.0,1.79959636]
[1672968497414,0.46094977,16862.0,16861.0,1.79959636]
[1672968497686,0.46094977,16862.0,16861.0,1.79919182]
[1672968497946,0.46104571,16862.0,16861.0,1.79919182]
[1672968498190,0.46094977,16862.0,16861.0,1.20610782]
[1672968498435,0.45994977,16862.0,16861.0,1.20610782]
[1672968498698,0.44494977,16862.0,16861.0,1.20610782]
[1672968498951,0.46094977,16862.0,16861.0,1.14567682]
[1672968499201,0.44494977,16862.0,16861.0,1.20610782]
[1672968499468,0.45994977,16862.0,16861.0,1.20610782]
[1672968499723,0.44494977,16862.0,16861.0,1.20610782]
[1672968499972,0.46094977,16862.0,16861.0,1.20610782]
[1672968501075,0.44494977,16862.0,16861.0,1.20610782]
[1672968501341,0.45994977,16862.0,16861.0,1.20610782]
[1672968501585,0.44494977,16862.0,16861.0,1.20610782]
[1672968501840,0.45994977,16862.0,16861.0,1.20610782]
[1672968502066,0.44494977,16862.0,16861.0,1.20610782]
[1672968502347,0.81505379,16862.0,16861.0,1.20610782]
[1672968502597,0.44504571,16862.0,16861.0,1.20610782]
[1672968502852,0.46004571,16862.0,16861.0,1.20610782]
[1672968503117,0.44494977,16862.0,16861.0,1.20610782]
[1672968503384,0.8010499,16862.0,16861.0,1.20610782]
[1672968503880,0.45894977,16862.0,16861.0,1.20610782]
[1672968504120,0.44494977,16862.0,16861.0,1.20610782]
[1672968504377,0.45994977,16862.0,16861.0,1.20610782]
[1672968504633,0.44494977,16862.0,16861.0,1.20610782]
[1672968504890,0.45894977,16862.0,16861.0,1.20610782]
[1672968505113,0.44494977,16862.0,16861.0,1.20610782]
[1672968505442,0.45994977,16862.0,16861.0,1.20610782]
[1672968505705,0.44504571,16862.0,16861.0,0.58203598]
[1672968505926,0.45894977,16862.0,16861.0,1.20610782]
[1672968507462,0.45894977,16862.0,16861.0,1.79919182]
[1672968507634,0.81505341,16862.0,16861.0,1.79919182]
[1672968507907,0.45894977,16862.0,16861.0,1.79919182]
[1672968510079,0.44504571,16862.0,16861.0,1.7010595]
[1672968510357,0.01509594,16862.0,16860.0,1.72693001]
[1672968510613,1.06835325,16861.0,16860.0,1.72693001]
[1672968510874,1.0683527,16861.0,16860.0,1.78736601]
[1672968511444,0.80126494,16861.0,16860.0,1.78736601]
[1672968511997,0.81526494,16861.0,16860.0,1.72693001]
[1672968512251,0.81526494,16861.0,16860.0,1.78736901]
[1672968513023,0.63718844,16861.0,16860.0,1.78736901]
[1672968513813,0.63718844,16861.0,16860.0,2.38048801]
[1672968515452,0.63718844,16861.0,16860.0,2.32004901]
[1672968515996,0.63718844,16861.0,16860.0,2.38048801]
[1672968518302,0.45911131,16861.0,16860.0,2.38048801]
[1672968519068,0.44511131,16861.0,16860.0,2.32004901]
[1672968519594,0.45911131,16861.0,16860.0,2.38048801]
[1672968523389,0.63718844,16861.0,16860.0,1.75923289]
[1672968523638,0.63718844,16861.0,16860.0,1.69879389]
[1672968524146,0.81526494,16861.0,16860.0,1.75923289]
[1672968524665,1.08232113,16861.0,16860.0,1.75923289]
[1672968524886,0.62317394,16861.0,16860.0,1.75923289]
[1672968525173,0.63717394,16861.0,16860.0,1.69879389]
[1672968525684,0.63717394,16861.0,16860.0,1.75923289]
[1672968526708,0.63717394,16861.0,16860.0,1.69879389]
[1672968527260,0.63717394,16861.0,16860.0,1.75923289]
[1672968529848,0.45908239,16861.0,16860.0,1.75923289]
[1672968531165,0.44508239,16861.0,16860.0,1.75923289]
[1672968531401,0.45908239,16861.0,16860.0,1.75923289]
[1672968532713,0.45908239,16861.0,16860.0,1.69879389]
[1672968532968,0.45908239,16861.0,16860.0,1.75923289]
[1672968534495,0.45908239,16861.0,16860.0,1.16603699]
[1672968534786,0.63714812,16861.0,16860.0,1.10559799]
[1672968535051,0.81526494,16861.0,16860.0,1.10559799]
[1672968535303,0.81526494,16861.0,16860.0,1.16603699]
[1672968535560,0.62313893,16861.0,16860.0,1.16603699]
[1672968535814,0.63713893,16861.0,16860.0,1.75915599]
[1672968536351,0.63723487,16861.0,16860.0,1.75915599]
[1672968536866,0.63713893,16861.0,16860.0,1.75915599]
[1672968537391,0.63723487,16861.0,16860.0,1.75915599]
[1672968537661,0.63713893,16861.0,16860.0,1.75915599]
[1672968538161,0.63713893,16861.0,16860.0,1.69871699]
[1672968538691,0.63723487,16861.0,16860.0,1.75915599]
[1672968539448,1.08238206,16861.0,16860.0,1.75915599]
[1672968539715,1.08237402,16861.0,16860.0,1.69871699]
[1672968539975,1.08237402,16861.0,16860.0,1.10559799]
[1672968539976,0.81536088,16861.0,16860.0,1.10559799]
[1672968540189,0.81536088,16861.0,16860.0,1.16603699]
[1672968541482,0.81526494,16861.0,16860.0,1.16603699]
[1672968541724,0.81526494,16861.0,16860.0,1.75915599]
[1672968541987,0.63712658,16861.0,16860.0,1.75915599]
[1672968542554,0.63712658,16861.0,16860.0,1.16603699]
[1672968542764,0.63722252,16861.0,16860.0,1.16603699]
[1672968543016,0.63712658,16861.0,16860.0,1.16603699]
[1672968544056,0.63712658,16861.0,16860.0,1.75915599]
[1672968544310,0.63712658,16861.0,16860.0,1.16603699]
[1672968546821,0.63712658,16861.0,16860.0,1.75915599]
[1672968547828,0.63712658,16861.0,16860.0,1.69871699]
[1672968548340,0.63712658,16861.0,16860.0,1.75915599]
[1672968548600,0.63703084,16861.0,16860.0,1.75915599]
[1672968551097,0.63703084,16861.0,16860.0,1.16603699]
[1672968553667,0.81503853,16861.0,16860.0,1.75915599]
[1672968553952,0.63703084,16861.0,16860.0,1.75915599]
[1672968554187,0.63712678,16861.0,16860.0,1.16603699]
[1672968554434,0.63712678,16861.0,16860.0,1.75915599]
[1672968554690,0.63703084,16861.0,16860.0,1.16603699]
[1672968555258,0.81513653,16861.0,16860.0,1.16603699]
[1672968555519,0.63712678,16861.0,16860.0,1.16603699]
[1672968556037,0.81513429,16861.0,16860.0,1.16603699]
[1672968556807,0.81503835,16861.0,16860.0,1.16603699]
[1672968557374,0.81503835,16861.0,16860.0,1.10559799]
[1672968557932,0.81503835,16861.0,16860.0,1.16603699]
[1672968558207,0.81503835,16861.0,16860.0,1.75915599]
[1672968558971,0.81503835,16861.0,16860.0,1.69871699]
[1672968559512,0.45901634,16861.0,16860.0,1.75915599]
[1672968560287,0.45901634,16861.0,16860.0,1.69871699]
[1672968560840,0.45901634,16861.0,16860.0,1.75915599]